{"text_format":"3","workbook":"xlsx","n_sheets":1,"sheets":["Sheet1"],"not_rendered":{"defined_names":3},"read":"whole","date_system":"1900"}

{"sheet":"Sheet1","index":0,"n_rows":48,"n_cols":19,"rows_kept":48,"merged":[[1,1,1,14],[2,0,2,14],[3,0,5,0],[3,1,3,3],[3,4,5,4],[3,5,5,5],[3,6,5,6],[3,7,5,7],[3,8,5,8],[3,9,3,11],[3,12,5,12],[3,13,5,13],[3,14,5,14],[4,1,5,1],[4,2,5,2],[4,3,5,3],[4,9,5,9],[4,10,4,11],[6,0,6,8],[7,0,7,8],[15,0,15,8],[46,0,46,8],[47,2,47,3]]}
["附件"]
[null,"三江县2024年中央二批财政衔接推进乡村振兴补助资金分配明细表"]
[]
["序号","建设地点",null,null,"项目名称","资金投向 \n （项目类型）\n1.乡村建设行动\n2.产业发展\n3.项目管理费\n4.易地搬迁后扶\n5.巩固三保障成果6.就业项目","建设性质\n（新建、续建、往年项目资金缺口）","主要建设内容","时间进度计划","资金来源(万元)",null,null,"主管部门","实施单位","备注"]
[null,"市、县(区)","乡(镇)名称","行政村名",{"$nulls":5},"合计","中央财政衔接资金"]
[{"$nulls":10},"提前批","第二批\n（本次分配）"]
["合计",{"$nulls":8},{"$f":"J8+J16+J47","v":3939.4769},{"$f":"K8+K16+K47","v":2131.4769},{"$f":"L8+L16+L47","v":1808}]
["小计",{"$nulls":8},{"$f":"SUM(J9:J15)","v":173},{"$f":"SUM(K9:K15)","v":0},{"$f":"SUM(L9:L15)","v":173},"统战部"]
[1,"三江县","同乐苗族乡","同乐村","三江县同乐苗族乡同乐村村内道路硬化项目","乡村建设行动","新建","建设内容：村内路硬化,包括预留排水沟、路肩回填、涵洞、挡土墙等。\n建设规模：路面长70米，路面宽4.5米，路基宽5.5米，厚0.2米。",null,{"$f":"K9+L9","v":8},null,8,"统战部","统战部"]
[2,"三江县","独峒镇","干冲村","三江县独峒镇干冲村排水排污沟建设项目","乡村建设行动","新建","建设内容：村内排水沟排污沟建设。\n建设规模：排水排号污沟建设1000米。",null,{"$f":"K10+L10","v":41},null,41,"统战部","统战部",{"$nulls":4}," "]
[3,"三江县","古宜镇","古皂村","三江县古宜镇侗家礼电商供应链基地（帮扶车间）配套基础设施建设项目","乡村建设行动","新建","建设内容：防洪挡土墙建设\n建设规模：长70米。",null,34,null,34,"统战部","统战部"]
[4,"三江县","丹洲镇","红路村","三江县丹洲镇红路村农田水利建设项目","乡村建设行动","新建","建设内容：农田水利建设\n建设规模：水渠建设1500米。",null,55,null,55,"统战部","统战部"]
[5,"三江县","林溪镇","美俗村","三江县林溪镇美俗村南康屯屯内道路硬化项目","乡村建设行动","新建","建设内容：道路硬化        \n建设规模：新建道路500米",null,17,null,17,"统战部","统战部"]
[6,"三江县","林溪镇","合华村","三江县林溪镇合华村合善屯生活垃圾转运站项目","乡村建设行动","新建","建设内容：新建垃圾中转站  \n建设规模：长12米，宽8米，厚0.2米",null,10,null,10,"统战部","统战部"]
[7,"三江县","全县","各村","三江县“导游说铸牢·讲好民族团结进步故事”培训班","就业项目","新建","建设内容：培训三江县辖区内从事导游的人员\n建设规模：30人以上",null,8,null,8,"统战部","统战部"]
["小计",{"$nulls":8},{"$f":"SUM(J17:J46)","v":3731.0769},{"$f":"SUM(K17:K46)","v":2131.4769},{"$f":"SUM(L17:L46)","v":1599.6},"乡村振兴局"]
[8,"三江县","老堡乡","曲村","三江县老堡乡下曲屯曲泠瀑布路口至罗凤山林区产业路硬化","产业发展","新建","1、道路长度406米，其中硬化长334米，宽3.5米 ；                                                                                  2、道路挖土石方4075立方，回填66立方；                                                                                                                       3、圆管涵42米/3道；                                                                                                                                             4、减速带17组，波形护栏长236米；新建2处路基防护：1号路基防护长86米高4米，2号路基防护长50米高4米。","2024年3月开工，2024年8月竣工",{"$f":"K17+L17","v":57.8209},52.8209,5,"乡村振兴局","乡村振兴局"]
[9,"三江县","老堡乡","东竹村","三江县老堡乡东竹村界脚屯河道治理项目","乡村建设行动","新建","新建防护堤总长338.5米。","2024年3月开工，2024年7月竣工",82,49,33,"乡村振兴局","乡村振兴局"]
[10,"三江县","独峒镇","高定村","三江县独峒镇高定村村屯道路硬化及配套项目","乡村建设行动","新建","硬化面积335㎡，硬化水沟149m,清理场地4704㎡，毛石混凝土路基防护 314m³。","2024年3月开工，2024年7月竣工",35,17,18,"乡村振兴局","乡村振兴局"]
[11,"三江县","林溪镇","合华村","三江县林溪镇合华村机深至平西义产业路硬化工程","产业发展","新建","硬化路面宽3.5米，总长 1.937公里，圆管涵36米，防撞栏12米，小桥1座。","2024年3月开工，2024年9月竣工",125,115,10,"乡村振兴局","乡村振兴局"]
[12,"三江县","林溪镇","林溪村","三江县林溪镇林溪村皇朝溪油产业路工程","产业发展","新建","新建3.5m路面宽产业道路2.534公里，11座φ1000涵管共77m。","2024年3月开工，2024年9月竣工",125,115,10,"乡村振兴局","乡村振兴局"]
[13,"三江县","丹洲镇","合桐村","三江县丹洲镇合桐村大山屯至瑶田油茶基地产业产业园建设工程","产业发展","新建","1、新建砂石路长4835米，宽3.5米；                                                                                         2、挖土石方99796立方米，回填5240立方；                                                                                          3、圆管涵119米/17道。","2024年3月开工\n2024年9月竣工验收",126,116,10,"乡村振兴局","乡村振兴局"]
[14,"三江县","高基乡","冲干村","三江县高基乡冲干村平见屯牛坡油茶基地产业路硬化项目","产业发展","新建","产业路硬化4.522公里，宽3.5米，1.0m涵管8道，波形防护栏1.230公里。","2024年3月开工\n2024年9月竣工验收",106.056,91.056,15,"乡村振兴局","乡村振兴局"]
[15,"三江县","程村乡","头坪村","三江县程村乡头坪村桐叶冷农田水利建设工程","产业发展","新建","（1）新建30*30cm灌溉渠7条：1#渠道长395m、2#渠道长375m、3#渠道长280m、4#渠道长160m、5#渠道长450m、6#渠道长155m、7#渠道长165m、合计长度为1980m，渠道断面采用C20砼现浇，渠肩厚度为20cm，渠底宽度小于1m采用C20现浇素砼，厚度为10cm，\n（2）新建7座拦水坎，拦水坎均采用C20砼现浇结构。","2024年3月开工，2024年9月竣工",70,66,4,"乡村振兴局","乡村振兴局"]
[16,"三江县","程村乡","泗里村严溪屯","三江县程村乡泗里村严溪屯高峰口滚水坝加固及农田防洪堤建设工程","产业发展","新建","（1）新建农田防洪堤160m，采用M7.5浆砌石结构；（2）新建人行盖板2座，采用C20钢筋混凝土结构（3）滚水坝加固1处，水坝上下游新建导流墙，结构均采用C20混凝土结构；\n（4）路面硬化面积80㎡，公路设计路面结构为：20cmC25厚水泥砼面层＋10cm碎石调平层。","2024年3月开工，2024年9月竣工",39,37,2,"乡村振兴局","乡村振兴局"]
[17,"三江县","程村乡","泗里村","三江县程村乡泗里村泠槽屯彩江脑至竹子山产业路建设工程","产业发展","新建","（1）新建砂石路面1943m(路基4.5m，路面3.5m)，铺筑面积9010㎡，公路设计路面结构为：2cm集配砂砾磨耗＋15cm碎石基层；\n（2）新建错车道266㎡/7处；\n（3）新建竣工牌（碑）一块；\n（4）新建圆管涵30米/5道。","2024年3月开工，2024年8月竣工",45,40,5,"乡村振兴局","乡村振兴局"]
[18,"三江县","洋溪乡","良培村","洋溪乡良培村培吉屯培吉小学路口至金塘茶叶基地产业路硬化项目","产业发展","新建","道路硬化4.5m宽，长1.345公里，路基防护20m，1座φ1000涵管共6m，排水沟。","2024年3月开工，2024年8月竣工",110.6,105.6,5,"乡村振兴局","乡村振兴局"]
[19,"三江县","洋溪乡","玉民村","洋溪乡玉民村洋业至两样产业路硬化建设项目","产业发展","新建","道路硬化4.5m宽，长3.268公里","2024年3月开工，2024年9月竣工",235,220,15,"乡村振兴局","乡村振兴局"]
[20,"三江县","洋溪乡","高露村","洋溪乡高露村加雷屯古树茶园生产能力提升建设项目","产业发展","新建","新建4.5m路面宽产业道路1.483公里，路基防护150m，6座φ1000涵管共58m。","2024年3月开工，2024年8月竣工",125,117,8,"乡村振兴局","乡村振兴局"]
[21,"三江县","同乐乡","归夯村","三江县同乐乡归夯村月亮亭产业路硬化项目","产业发展","新建","新建硬化路长1.433公里,宽度3.5米。","2024年3月开工，2024年9月竣工",49.2,44.2,5,"乡村振兴局","乡村振兴局"]
[22,"三江县","同乐乡","高旁村","三江县同乐乡高旁村两茶产业基地产业路建设工程","产业发展","新建","新建硬化路长1.446公里；新建涵管6道/6米，长36米。","2024年3月开工，2024年9月竣工",77,73,4,"乡村振兴局","乡村振兴局"]
[23,"三江县","同乐乡","八吉村","三江县同乐乡八吉村四引油茶产业基地产业路建设工程","产业发展","新建","新建硬化路长2.140公里；涵管6道/8米，长48米；新建2*2米盖板涵3道/10米，长30米；新建挡土墙3幅，高4.7米，长47米。","2024年3月开工，2024年8月竣工",165,155,10,"乡村振兴局","乡村振兴局"]
[24,"三江县","同乐乡","寨大村","三江县同乐乡寨大村连接寨丛林业产业路硬化项目（第二期）","产业发展","新建","新建硬化路长1.600公里，宽度4米。","2024年3月开工，2024年8月竣工",41.3,31.3,10,"乡村振兴局","乡村振兴局"]
[25,"三江县","同乐乡","高培村","三江县同乐乡高培村归能至归洋两茶产业基地产业路建设工程","产业发展","新建","新建硬化路长2.756公里，新建涵管9道/7米，长63米；新建挡墙1幅，高4.5米；长30米。","2024年3月开工，2024年8月竣工",59.5,51.5,8,"乡村振兴局","乡村振兴局"]
[26,"三江县","良口乡","布糯村","三江县良口乡布糯村村集体茶园产业路建设项目","产业发展","新建","新建3.5m路面宽产业道路3.585公里，14座φ1000涵管共105m。","2024年3月开工，2024年9月竣工",97,90,7,"乡村振兴局","乡村振兴局"]
[27,"三江县","良口乡","燕茶村","三江县良口乡燕茶村布交飞鸡养殖基地产业路建设工程","产业发展","新建","道路硬化3.5m宽，长2.323公里，7座φ1000涵管共35m。","2024年3月开工，2024年9月竣工",150,142,8,"乡村振兴局","乡村振兴局"]
[28,"三江县","良口乡","布糯村","三江县良口乡布糯村王白屯至岑高胜产业路硬化建设项目","产业发展","新建","道路硬化3.5m宽，长2.723公里，8座φ1000涵管共40m。","2024年3月开工，2024年9月竣工",180,170,10,"乡村振兴局","乡村振兴局"]
[29,"三江县","八江镇","汾水村","三江县八江镇汾水村高滩屯高山云雾茶产业示范基地","产业发展","新建","新建路面宽3.5米，砂石路长3.136公里","2024年3月开工，2024年9月竣工",150,140,10,"乡村振兴局","乡村振兴局"]
[30,"三江县","八江镇","八斗村","三江县八江镇政府桥头至干虎屯道路建设项目","乡村建设行动","新建","新建水泥路硬化长0.378公里，路面宽6米，路基宽6.5米。","2024年3月开工，2024年9月竣工",186.2,93,93.2,"乡村振兴局","乡村振兴局"]
[31,"三江县","林溪镇","林溪村","三江县林溪镇林溪村亮寨神堂林木产业路建设工程（亮寨至合善）","产业发展",null,"总长度2.603公里，路面宽3.5米，管涵8道/59米，盖板涵1座，挡土墙1幅；",null,20,null,20,"乡村振兴局","乡村振兴局"]
[32,"三江县","程村乡","泗里村","三江县程村乡泗里村泠槽屯屋背山林地运输道路建设工程","产业发展",null,"总长度6.224公里，路面宽4.5米，管涵23道/176米，盖板函1座/6.5米，挡土墙4幅/65米；",null,20,null,20,"乡村振兴局","乡村振兴局"]
[33,"三江县","古宜镇","大竹村","三江侗族自治县苗木交易市场项目","产业发展","新建","建筑面积 2132.50 平方米，其中 1#楼为一栋附属管理用房，为两层\n建筑，建筑面积约为 432.50 平方米，2#楼为一栋市场用房，为\n两层建筑，建筑面积约为 1700 平方米。",null,450,null,450,"乡村振兴局","乡村振兴局"]
[34,"三江县","独峒镇","高亚村","三江县独峒镇高亚村上亚屯雷公岭产业路硬化项目（上亚屯寨头至雷公岭段）","产业发展","新建","路线总长4.145公里，建设内容：新建4.5米宽厚10厘米厚碎石路基和新建宽3.5米厚20厘米C25混凝图土路面，以及路肩2*0.5米培土、排水管等；",null,335.4,null,335.4,"乡村振兴局","乡村振兴局"]
[35,"三江县","高基乡","桐叶村","三江县高基乡桐叶村步远桥头冲至九宇林场产业路硬化","产业发展","新建","路线总长5.618公里，建设内容：新建4米宽厚10厘米厚碎石路基和新建宽3.5米厚20厘米C25混凝图土路面，以及路肩2*0.5米培土、重力式挡土墙16米、排水管等；",null,310,null,310,"乡村振兴局","乡村振兴局"]
[36,"三江县","古宜镇","寨准村","三江县古宜镇寨准村双石岭油茶基地园内道路硬化","产业发展",null,"硬化道路长300米，宽3.5米、高0.2米",null,19,null,19,"乡村振兴局","乡村振兴局"]
[37,"三江县","八江镇","汾水村","三江县八江镇汾水村茶叶加工厂","产业发展",null,"建设厂房、变压器、修建水池、水电等基础设施，",null,140,null,140,"乡村振兴局","八江镇","集体经济项目"]
["小计",{"$nulls":8},{"$f":"SUM(J48:J48)","v":35.4},{"$f":"SUM(K48:K48)","v":0},{"$f":"SUM(L48:L48)","v":35.4},"农业农村局"]
[38,"三江县","全县",null,"三江县2024年茶产业高质发展及人才振兴项目","产业发展","新建","引进中国农业科学院茶叶研究所专家团队以“三江早春茶特征风味挖掘和品质提升”为需求导向，收集三江县不同区域、不同品种的30个三江早春茶样品进行品质特征化学物质挖掘与分析，并在全县范围内开展技术指导服务工作。","2024年7月开工\n2024年12月竣工验收",{"$f":"K48+L48","v":35.4},null,35.4,"农业农村局","农业农村局"]